Workbook

Sheet HeroPowerUpConfig
A1: ID | B1: HeroLevel | C1: HPFactor | D1: ATKFactor | E1: DEFFactor | F1: SHANBIFactor | G1: EXPFactor | H1: levelUpExp | J1: LevelupBasicPower | K1: skillParam | L1: defK
A2: int | B2: int | C2: float | D2: float | E2: float | F2: float | G2: float | H2: int | J2: int | K2: string[] | L2: int
P3: 2.83402
A4: ID | B4: 英雄等级 | C4: 生命倍率 | D4: 攻击力倍率 | E4: 防御倍率 | F4: 闪避倍率 | G4: 经验产出倍率 | H4: 升级所需经验值 （-1代表最大等级) | J4: 等级提升提供的评分A1 | K4: 对应HeroModel表的下标和等级 0,1 表示1位置的1级 1,1 表示2位置的1级 1,2 表示3位置的2级 | L4: 防御系数K | M4: 总经验 | N4: =SUM(H5:H103) -> 15652876 | O4: 成长率与经验倍率的放大指数 | P4: 2.47272 | Q4: 单人升满r | R4: 100000
A5: 1 | B5: 1 | C5: 1.05 | D5: 1.06666666666667 | E5: 2.05 | F5: 1 | G5: 1 | H5: 10 | I5: 1 | J5: =ROUND(300*#REF!,0) ->  | K5: 0,1;1,1 | L5: 60 | M5: 0
A6: 2 | B6: 2 | C6: 1.101666667 | D6: 1.116666667 | E6: 2.15 | F6: 1 | G6: =E6 -> 2.15 | H6: =ROUND(H5*$I$5*I6,0) -> 12 | I6: 1.16 | J6: =ROUND(300*#REF!,0) ->  | L6: 122.46 | M6: =SUM(H$5:H5) -> 10 | N6: 进入等级 | O6: 10
A7: 3 | B7: 3 | C7: 1.158333333 | D7: 1.183333333 | E7: 2.25 | F7: 1 | G7: =E7 -> 2.25 | H7: =ROUND(H6*$I$5*I7,0) -> 14 | I7: =I6*0.9995 -> 1.15942 | J7: =ROUND(300*#REF!,0) ->  | L7: 127.87 | M7: =SUM(H$5:H6) -> 22 | N7: 完成等级 | O7: 20
A8: 4 | B8: 4 | C8: 1.216666667 | D8: 1.233333333 | E8: 2.35 | F8: 1 | G8: =E8 -> 2.35 | H8: =ROUND(H7*$I$5*I8,0) -> 16 | I8: =I7*0.9997 -> 1.159072174 | J8: =ROUND(300*#REF!,0) ->  | L8: 133.23 | M8: =SUM(H$5:H7) -> 36 | N8: 总人数 | O8: 3
A9: 5 | B9: 5 | C9: 1.276666667 | D9: 1.3 | E9: 2.45 | F9: 1 | G9: 2.45 | H9: 19 | I9: =I8*0.9997 -> 1.158724452 | J9: =ROUND(300*#REF!,0) ->  | L9: 138.54 | M9: =SUM(H$5:H8) -> 52 | N9: 需要经验 | O9: =(VLOOKUP(O7,A:M,10,FALSE)-VLOOKUP(O6,A:M,10,FALSE))*O8 -> 
A10: 6 | B10: 6 | C10: 1.34 | D10: 1.366666667 | E10: 2.55 | F10: 1 | G10: 2.55 | H10: 22 | I10: =I9*0.9997 -> 1.158376835 | J10: =ROUND(300*#REF!,0) ->  | L10: 143.81 | M10: =SUM(H$5:H9) -> 71
A11: 7 | B11: 7 | C11: 1.408333333 | D11: 1.416666667 | E11: 2.7 | F11: 1 | G11: 2.7 | H11: 25 | I11: =I10*0.9997 -> 1.158029322 | J11: =ROUND(300*#REF!,0) ->  | L11: 149.03 | M11: =SUM(H$5:H10) -> 93
A12: 8 | B12: 8 | C12: 1.478333333 | D12: 1.5 | E12: 2.85 | F12: 1 | G12: 2.85 | H12: 29 | I12: =I11*0.9997 -> 1.157681913 | J12: =ROUND(300*#REF!,0) ->  | L12: 157.11 | M12: =SUM(H$5:H11) -> 118 | N12: 道具 | O12: ID | P12: 数量
A13: 9 | B13: 9 | C13: 1.551666667 | D13: 1.583333333 | E13: 3 | F13: 1 | G13: 3 | H13: 34 | I13: =I12*0.9997 -> 1.157334609 | J13: =ROUND(300*#REF!,0) ->  | L13: 165.12 | M13: =SUM(H$5:H12) -> 147 | N13: 经验水晶粉末 | O13: 2001 | Q13: 100 | R13: 对英雄使用后获得100点英雄经验。
A14: 10 | B14: 10 | C14: 1.63 | D14: 1.666666667 | E14: 3.15 | F14: 1 | G14: 3.15 | H14: 39 | I14: =I13*0.9997 -> 1.156987408 | J14: =ROUND(300*#REF!,0) ->  | L14: 173.05 | M14: =SUM(H$5:H13) -> 181 | N14: 经验水晶碎屑 | O14: 2002 | Q14: 500 | R14: 对英雄使用后获得500点英雄经验。
A15: 11 | B15: 11 | C15: 1.711666667 | D15: 1.733333333 | E15: 3.3 | F15: 1 | G15: 3.3 | H15: 45 | I15: =I14*0.9997 -> 1.156640312 | J15: =ROUND(300*#REF!,0) ->  | K15: 2,1 | L15: 180.92 | M15: =SUM(H$5:H14) -> 220 | N15: 经验水晶结晶 | O15: 2003 | Q15: 2000 | R15: 对英雄使用后获得2000点英雄经验。
A16: 12 | B16: 12 | C16: 1.798333333 | D16: 1.816666667 | E16: 3.45 | F16: 1 | G16: 3.45 | H16: 52 | I16: =I15*0.9997 -> 1.15629332 | J16: =ROUND(300*#REF!,0) ->  | L16: 188.72 | M16: =SUM(H$5:H15) -> 265 | N16: 经验水晶晶簇 | O16: 2004 | Q16: 10000 | R16: 对英雄使用后获得10000点英雄经验。
A17: 13 | B17: 13 | C17: 1.888333333 | D17: 1.916666667 | E17: 3.6 | F17: 1 | G17: 3.6 | H17: 60 | I17: =I16*0.9997 -> 1.155946432 | J17: =ROUND(300*#REF!,0) ->  | L17: 196.45 | M17: =SUM(H$5:H16) -> 317
A18: 14 | B18: 14 | C18: 1.981666667 | D18: 2.016666667 | E18: 3.8 | F18: 1 | G18: 3.8 | H18: 69 | I18: =I17*0.9997 -> 1.155599648 | J18: =ROUND(300*#REF!,0) ->  | L18: 204.11 | M18: =SUM(H$5:H17) -> 377
A19: 15 | B19: 15 | C19: 2.081666667 | D19: 2.116666667 | E19: 4 | F19: 1 | G19: 4 | H19: 80 | I19: =I18*0.9997 -> 1.155252968 | J19: =ROUND(300*#REF!,0) ->  | L19: 214.53 | M19: =SUM(H$5:H18) -> 446
A20: 16 | B20: 16 | C20: 2.186666667 | D20: 2.216666667 | E20: 4.2 | F20: 1 | G20: 4.2 | H20: 92 | I20: =I19*0.9997 -> 1.154906392 | J20: =ROUND(300*#REF!,0) ->  | L20: 224.86 | M20: =SUM(H$5:H19) -> 526
A21: 17 | B21: 17 | C21: 2.296666667 | D21: 2.333333333 | E21: 4.4 | F21: 1 | G21: 4.4 | H21: 106 | I21: =I20*0.9997 -> 1.15455992 | J21: =ROUND(300*#REF!,0) ->  | L21: 235.09 | M21: =SUM(H$5:H20) -> 618
A22: 18 | B22: 18 | C22: 2.41 | D22: 2.466666667 | E22: 4.6 | F22: 1 | G22: 4.6 | H22: 122 | I22: =I21*0.9997 -> 1.154213552 | J22: =ROUND(300*#REF!,0) ->  | L22: 245.24 | M22: =SUM(H$5:H21) -> 724
A23: 19 | B23: 19 | C23: 2.53 | D23: 2.583333333 | E23: 4.85 | F23: 1 | G23: 4.85 | H23: 141 | I23: =I22*0.9997 -> 1.153867288 | J23: =ROUND(300*#REF!,0) ->  | L23: 255.3 | M23: =SUM(H$5:H22) -> 846
A24: 20 | B24: 20 | C24: 3.098333333 | D24: 3.15 | E24: 5.1 | F24: 1 | G24: 5.1 | H24: 163 | I24: =I23*0.9997 -> 1.153521128 | J24: =ROUND(300*#REF!,0) ->  | L24: 268.03 | M24: =SUM(H$5:H23) -> 987
A25: 21 | B25: 21 | C25: 3.253333333 | D25: 3.316666667 | E25: 5.35 | F25: 1 | G25: 5.35 | H25: 188 | I25: =I24*0.9997 -> 1.153175072 | J25: =ROUND(300*#REF!,0) ->  | L25: 280.66 | M25: =SUM(H$5:H24) -> 1150
A26: 22 | B26: 22 | C26: 3.416666667 | D26: 3.483333333 | E26: 5.6 | F26: 1 | G26: 5.6 | H26: 217 | I26: =I25*0.9997 -> 1.152829119 | J26: =ROUND(300*#REF!,0) ->  | L26: 293.17 | M26: =SUM(H$5:H25) -> 1338
A27: 23 | B27: 23 | C27: 3.586666667 | D27: 3.633333333 | E27: 5.9 | F27: 1 | G27: 5.9 | H27: 250 | I27: =I26*0.9997 -> 1.15248327 | J27: =ROUND(300*#REF!,0) ->  | L27: 305.58 | M27: =SUM(H$5:H26) -> 1555
A28: 24 | B28: 24 | C28: 3.766666667 | D28: 3.833333333 | E28: 6.2 | F28: 1 | G28: 6.2 | H28: 288 | I28: =I27*0.9995 -> 1.151907029 | J28: =ROUND(300*#REF!,0) ->  | L28: 320.6 | M28: =SUM(H$5:H27) -> 1805
A29: 25 | B29: 25 | C29: 3.955 | D29: 4.016666667 | E29: 6.5 | F29: 1 | G29: 6.5 | H29: 332 | I29: =I28*0.9995 -> 1.151331075 | J29: =ROUND(300*#REF!,0) ->  | L29: 335.48 | M29: =SUM(H$5:H28) -> 2093
A30: 26 | B30: 26 | C30: 4.153333333 | D30: 4.216666667 | E30: 6.85 | F30: 1 | G30: 6.85 | H30: 382 | I30: =I29*0.9995 -> 1.15075541 | J30: =ROUND(300*#REF!,0) ->  | L30: 350.24 | M30: =SUM(H$5:H29) -> 2425
A31: 27 | B31: 27 | C31: 4.361666667 | D31: 4.433333333 | E31: 7.2 | F31: 1 | G31: 7.2 | H31: 439 | I31: =I30*0.9995 -> 1.150180032 | J31: =ROUND(300*#REF!,0) ->  | L31: 367.56 | M31: =SUM(H$5:H30) -> 2807
A32: 28 | B32: 28 | C32: 4.578333333 | D32: 4.666666667 | E32: 7.55 | F32: 1 | G32: 7.55 | H32: 505 | I32: =I31*0.9995 -> 1.149604942 | J32: =ROUND(300*#REF!,0) ->  | L32: 384.73 | M32: =SUM(H$5:H31) -> 3246
A33: 29 | B33: 29 | C33: 4.806666667 | D33: 4.9 | E33: 7.95 | F33: 1 | G33: 7.95 | H33: 580 | I33: =I32*0.9995 -> 1.14903014 | J33: =ROUND(300*#REF!,0) ->  | L33: 401.75 | M33: =SUM(H$5:H32) -> 3751
A34: 30 | B34: 30 | C34: 5.046666667 | D34: 5.15 | E34: 8.35 | F34: 1 | G34: 8.35 | H34: 666 | I34: =I33*0.9995 -> 1.148455624 | J34: =ROUND(300*#REF!,0) ->  | L34: 421.28 | M34: =SUM(H$5:H33) -> 4331
A35: 31 | B35: 31 | C35: 5.298333333 | D35: 5.416666667 | E35: 8.75 | F35: 1 | G35: 8.75 | H35: 764 | I35: =I34*0.9995 -> 1.147881397 | J35: =ROUND(300*#REF!,0) ->  | K35: 1,2 | L35: 440.64 | M35: =SUM(H$5:H34) -> 4997
A36: 32 | B36: 32 | C36: 5.565 | D36: 5.7 | E36: 9.2 | F36: 1 | G36: 9.2 | H36: 877 | I36: =I35*0.9995 -> 1.147307456 | J36: =ROUND(300*#REF!,0) ->  | L36: 459.83 | M36: =SUM(H$5:H35) -> 5761
A37: 33 | B37: 33 | C37: 5.843333333 | D37: 5.966666667 | E37: 9.65 | F37: 1 | G37: 9.65 | H37: 1006 | I37: =I36*0.9995 -> 1.146733802 | J37: =ROUND(300*#REF!,0) ->  | L37: 481.49 | M37: =SUM(H$5:H36) -> 6638
A38: 34 | B38: 34 | C38: 6.135 | D38: 6.283333333 | E38: 10.15 | F38: 1 | G38: 10.15 | H38: 1153 | I38: =I37*0.9995 -> 1.146160435 | J38: =ROUND(300*#REF!,0) ->  | L38: 502.95 | M38: =SUM(H$5:H37) -> 7644
A39: 35 | B39: 35 | C39: 6.44 | D39: 6.583333333 | E39: 10.65 | F39: 1 | G39: 10.65 | H39: 1321 | I39: =I38*0.9995 -> 1.145587355 | J39: =ROUND(300*#REF!,0) ->  | L39: 526.83 | M39: =SUM(H$5:H38) -> 8797
A40: 36 | B40: 36 | C40: 6.761666667 | D40: 6.9 | E40: 11.2 | F40: 1 | G40: 11.2 | H40: 1513 | I40: =I39*0.9995 -> 1.145014561 | J40: =ROUND(300*#REF!,0) ->  | L40: 550.51 | M40: =SUM(H$5:H39) -> 10118
A41: 37 | B41: 37 | C41: 7.1 | D41: 7.25 | E41: 11.75 | F41: 1 | G41: 11.75 | H41: 1732 | I41: =I40*0.9995 -> 1.144442054 | J41: =ROUND(300*#REF!,0) ->  | L41: 576.57 | M41: =SUM(H$5:H40) -> 11631
A42: 38 | B42: 38 | C42: 7.455 | D42: 7.633333333 | E42: 12.35 | F42: 1 | G42: 12.35 | H42: 1981 | I42: =I41*0.9995 -> 1.143869833 | J42: =ROUND(300*#REF!,0) ->  | L42: 602.4 | M42: =SUM(H$5:H41) -> 13363
A43: 39 | B43: 39 | C43: 7.828333333 | D43: 8 | E43: 12.95 | F43: 1 | G43: 12.95 | H43: 2265 | I43: =I42*0.9995 -> 1.143297898 | J43: =ROUND(300*#REF!,0) ->  | L43: 630.58 | M43: =SUM(H$5:H42) -> 15344
A44: 40 | B44: 40 | C44: 9.395 | D44: 9.6 | E44: 13.6 | F44: 1 | G44: 13.6 | H44: 2588 | I44: =I43*0.9995 -> 1.142726249 | J44: =ROUND(300*#REF!,0) ->  | L44: 658.51 | M44: =SUM(H$5:H43) -> 17609
A45: 41 | B45: 41 | C45: 9.863333333 | D45: 10.08333333 | E45: 14.3 | F45: 1 | G45: 14.3 | H45: 2956 | I45: =I44*0.9995 -> 1.142154886 | J45: =ROUND(300*#REF!,0) ->  | L45: 688.75 | M45: =SUM(H$5:H44) -> 20197
A46: 42 | B46: 42 | C46: 10.35666667 | D46: 10.58333333 | E46: 15 | F46: 1 | G46: 15 | H46: 3375 | I46: =I45*0.9995 -> 1.141583809 | J46: =ROUND(300*#REF!,0) ->  | L46: 721.25 | M46: =SUM(H$5:H45) -> 23153
A47: 43 | B47: 43 | C47: 10.875 | D47: 11.11666667 | E47: 15.75 | F47: 1 | G47: 15.75 | H47: 3851 | I47: =I46*0.9995 -> 1.141013017 | J47: =ROUND(300*#REF!,0) ->  | L47: 753.49 | M47: =SUM(H$5:H46) -> 26528
A48: 44 | B48: 44 | C48: 11.41833333 | D48: 11.68333333 | E48: 16.55 | F48: 1 | G48: 16.55 | H48: 4392 | I48: =I47*0.9995 -> 1.14044251 | J48: =ROUND(300*#REF!,0) ->  | L48: 787.96 | M48: =SUM(H$5:H47) -> 30379
A49: 45 | B49: 45 | C49: 11.99 | D49: 12.26666667 | E49: 17.4 | F49: 1 | G49: 17.4 | H49: 5004 | I49: =I48*0.999 -> 1.139302068 | J49: =ROUND(300*#REF!,0) ->  | L49: 824.63 | M49: =SUM(H$5:H48) -> 34771
A50: 46 | B50: 46 | C50: 12.59 | D50: 12.88333333 | E50: 18.25 | F50: 1 | G50: 18.25 | H50: 5695 | I50: =I49*0.999 -> 1.138162766 | J50: =ROUND(300*#REF!,0) ->  | L50: 863.48 | M50: =SUM(H$5:H49) -> 39775
A51: 47 | B51: 47 | C51: 13.21833333 | D51: 13.51666667 | E51: 19.15 | F51: 1 | G51: 19.15 | H51: 6475 | I51: 1.137024603 | J51: =ROUND(300*#REF!,0) ->  | L51: 902.01 | M51: =SUM(H$5:H50) -> 45470
A52: 48 | B52: 48 | C52: 13.88 | D52: 14.18333333 | E52: 20.1 | F52: 1 | G52: 20.1 | H52: 7355 | I52: 1.135887578 | J52: =ROUND(300*#REF!,0) ->  | L52: 942.68 | M52: =SUM(H$5:H51) -> 51945
A53: 49 | B53: 49 | C53: 14.57333333 | D53: 14.9 | E53: 21.1 | F53: 1 | G53: 21.1 | H53: 8346 | I53: 1.134751691 | J53: =ROUND(300*#REF!,0) ->  | L53: 985.47 | M53: =SUM(H$5:H52) -> 59300
A54: 50 | B54: 50 | C54: 15.30166667 | D54: 15.65 | E54: 22.15 | F54: 1 | G54: 22.15 | H54: 9461 | I54: 1.133616939 | J54: =ROUND(300*#REF!,0) ->  | L54: 1030.35 | M54: =SUM(H$5:H53) -> 67646
A55: 51 | B55: 51 | C55: 16.06666667 | D55: 16.43333333 | E55: 23.25 | F55: 1 | G55: 23.25 | H55: 10714 | I55: 1.132483322 | J55: =ROUND(300*#REF!,0) ->  | K55: 2,2 | L55: 1077.3 | M55: =SUM(H$5:H54) -> 77107
A56: 52 | B56: 52 | C56: 16.87 | D56: 17.25 | E56: 24.4 | F56: 1 | G56: 24.4 | H56: 12121 | I56: 1.131350839 | J56: =ROUND(300*#REF!,0) ->  | L56: 1126.27 | M56: =SUM(H$5:H55) -> 87821
A57: 53 | B57: 53 | C57: 17.71166667 | D57: 18.1 | E57: 25.6 | F57: 1 | G57: 25.6 | H57: 13699 | I57: 1.130219488 | J57: =ROUND(300*#REF!,0) ->  | L57: 1177.27 | M57: =SUM(H$5:H56) -> 99942
A58: 54 | B58: 54 | C58: 18.59666667 | D58: 19.01666667 | E58: 26.9 | F58: 1 | G58: 26.9 | H58: 15467 | I58: 1.129089268 | J58: =ROUND(300*#REF!,0) ->  | L58: 1230.24 | M58: =SUM(H$5:H57) -> 113641
A59: 55 | B59: 55 | C59: 19.52833333 | D59: 19.96666667 | E59: 28.25 | F59: 1 | G59: 28.25 | H59: 17446 | I59: 1.127960179 | J59: =ROUND(300*#REF!,0) ->  | L59: 1287.57 | M59: =SUM(H$5:H58) -> 129108
A60: 56 | B60: 56 | C60: 20.50333333 | D60: 20.96666667 | E60: 29.65 | F60: 1 | G60: 29.65 | H60: 19659 | I60: 1.126832219 | J60: =ROUND(300*#REF!,0) ->  | L60: 1346.82 | M60: =SUM(H$5:H59) -> 146554
A61: 57 | B61: 57 | C61: 21.52833333 | D61: 22 | E61: 31.15 | F61: 1 | G61: 31.15 | H61: 22130 | I61: 1.125705387 | J61: =ROUND(300*#REF!,0) ->  | L61: 1407.96 | M61: =SUM(H$5:H60) -> 166213
A62: 58 | B62: 58 | C62: 22.605 | D62: 23.1 | E62: 32.7 | F62: 1 | G62: 32.7 | H62: 24887 | I62: 1.124579681 | J62: =ROUND(300*#REF!,0) ->  | L62: 1473.33 | M62: =SUM(H$5:H61) -> 188343
A63: 59 | B63: 59 | C63: 23.73666667 | D63: 24.23333333 | E63: 34.35 | F63: 1 | G63: 34.35 | H63: 27959 | I63: 1.123455102 | J63: =ROUND(300*#REF!,0) ->  | L63: 1540.53 | M63: =SUM(H$5:H62) -> 213230
A64: 60 | B64: 60 | C64: 28.03833333 | D64: 28.61666667 | E64: 36.05 | F64: 1 | G64: 36.05 | H64: 31379 | I64: 1.122331647 | J64: =ROUND(300*#REF!,0) ->  | L64: 1611.88 | M64: =SUM(H$5:H63) -> 241189
A65: 61 | B65: 61 | C65: 29.43833333 | D65: 30.06666667 | E65: 37.85 | F65: 1 | G65: 37.85 | H65: 35182 | I65: 1.121209315 | J65: =ROUND(300*#REF!,0) ->  | L65: 1684.99 | M65: =SUM(H$5:H64) -> 272568
A66: 62 | B66: 62 | C66: 30.91166667 | D66: 31.56666667 | E66: 39.75 | F66: 1 | G66: 39.75 | H66: 39407 | I66: 1.120088106 | J66: =ROUND(300*#REF!,0) ->  | L66: 1762.16 | M66: =SUM(H$5:H65) -> 307750
A67: 63 | B67: 63 | C67: 32.45666667 | D67: 33.15 | E67: 41.75 | F67: 1 | G67: 41.75 | H67: 44095 | I67: 1.118968018 | J67: =ROUND(300*#REF!,0) ->  | L67: 1843.35 | M67: =SUM(H$5:H66) -> 347157
A68: 64 | B68: 64 | C68: 34.08 | D68: 34.8 | E68: 43.85 | F68: 1 | G68: 43.85 | H68: 49292 | I68: 1.11784905 | J68: =ROUND(300*#REF!,0) ->  | L68: 1928.51 | M68: =SUM(H$5:H67) -> 391252
A69: 65 | B69: 65 | C69: 35.78333333 | D69: 36.53333333 | E69: 46.05 | F69: 1 | G69: =E69 -> 46.05 | H69: 55046 | I69: 1.116731201 | J69: =ROUND(300*#REF!,0) ->  | L69: 2017.58 | M69: =SUM(H$5:H68) -> 440544
A70: 66 | B70: 66 | C70: 37.57166667 | D70: 38.36666667 | E70: 48.35 | F70: 1 | G70: 48.35 | H70: 61410 | I70: 1.115614469 | J70: =ROUND(300*#REF!,0) ->  | L70: 2110.52 | M70: =SUM(H$5:H69) -> 495590
A71: 67 | B71: 67 | C71: 39.45 | D71: 40.28333333 | E71: 50.75 | F71: 1 | G71: 50.75 | H71: =ROUND(H70*$I$5*I71,0) -> 68441 | I71: 1.114498855 | J71: =ROUND(300*#REF!,0) ->  | L71: 2207.28 | M71: =SUM(H$5:H70) -> 557000
A72: 68 | B72: 68 | C72: 41.42333333 | D72: 42.3 | E72: 53.3 | F72: 1 | G72: 53.3 | H72: 76201 | I72: 1.113384356 | J72: =ROUND(300*#REF!,0) ->  | L72: 2307.82 | M72: =SUM(H$5:H71) -> 625441
A73: 69 | B73: 69 | C73: 43.49333333 | D73: 44.43333333 | E73: 55.95 | F73: 1 | G73: 55.95 | H73: 84756 | I73: 1.112270972 | J73: =ROUND(300*#REF!,0) ->  | L73: 2414.35 | M73: =SUM(H$5:H72) -> 701642
A74: 70 | B74: 70 | C74: 45.66833333 | D74: 46.65 | E74: 58.75 | F74: 1 | G74: 58.75 | H74: 94177 | I74: 1.111158701 | J74: =ROUND(300*#REF!,0) ->  | L74: 2524.54 | M74: =SUM(H$5:H73) -> 786398
A75: 71 | B75: 71 | C75: 47.95166667 | D75: 48.98333333 | E75: 61.7 | F75: 1 | G75: 61.7 | H75: 104541 | I75: 1.110047542 | J75: =ROUND(300*#REF!,0) ->  | K75: 3,2 | L75: 2640.59 | M75: =SUM(H$5:H74) -> 880575
A76: 72 | B76: 72 | C76: 50.34833333 | D76: 51.45 | E76: 64.8 | F76: 1 | G76: 64.8 | H76: 115929 | I76: 1.108937494 | J76: =ROUND(300*#REF!,0) ->  | L76: 2762.44 | M76: =SUM(H$5:H75) -> 985116
A77: 73 | B77: 73 | C77: 52.86666667 | D77: 54.03333333 | E77: 68.05 | F77: 1 | G77: 68.05 | H77: 128429 | I77: 1.107828557 | J77: =ROUND(300*#REF!,0) ->  | L77: 2890.01 | M77: =SUM(H$5:H76) -> 1101045
A78: 74 | B78: 74 | C78: 55.50833333 | D78: 56.73333333 | E78: 71.45 | F78: 1 | G78: 71.45 | H78: 142135 | I78: 1.106720728 | J78: =ROUND(300*#REF!,0) ->  | L78: 3023.23 | M78: =SUM(H$5:H77) -> 1229474
A79: 75 | B79: 75 | C79: 58.28333333 | D79: 59.58333333 | E79: 75 | F79: 1 | G79: 75 | H79: 157146 | I79: 1.105614008 | J79: =ROUND(300*#REF!,0) ->  | L79: 3162.04 | M79: =SUM(H$5:H78) -> 1371609
A80: 76 | B80: 76 | C80: 61.19666667 | D80: 62.55 | E80: 78.75 | F80: 1 | G80: 78.75 | H80: 173569 | I80: 1.104508394 | J80: =ROUND(300*#REF!,0) ->  | L80: 3306.37 | M80: =SUM(H$5:H79) -> 1528755
A81: 77 | B81: 77 | C81: 64.25666667 | D81: 65.66666667 | E81: 82.7 | F81: 1 | G81: 82.7 | H81: 191517 | I81: 1.103403885 | J81: =ROUND(300*#REF!,0) ->  | L81: 3458.33 | M81: =SUM(H$5:H80) -> 1702324
A82: 78 | B82: 78 | C82: 67.47 | D82: 68.93333333 | E82: 86.85 | F82: 1 | G82: 86.85 | H82: 211109 | I82: 1.102300481 | J82: =ROUND(300*#REF!,0) ->  | L82: 3617.85 | M82: =SUM(H$5:H81) -> 1893841
A83: 79 | B83: 79 | C83: 70.845 | D83: 72.38333333 | E83: 91.2 | F83: 1 | G83: 91.2 | H83: 232473 | I83: 1.101198181 | J83: =ROUND(300*#REF!,0) ->  | L83: 3784.83 | M83: =SUM(H$5:H82) -> 2104950
A84: 80 | B84: 80 | C84: 82.65333333 | D84: 84.46666667 | E84: 95.75 | F84: 1 | G84: 95.75 | H84: 255743 | I84: 1.100096983 | J84: =ROUND(300*#REF!,0) ->  | L84: 3959.18 | M84: =SUM(H$5:H83) -> 2337423
A85: 81 | B85: 81 | C85: 86.78666667 | D85: 88.7 | E85: 100.55 | F85: 1 | G85: 100.55 | H85: 281061 | I85: 1.098996886 | J85: =ROUND(300*#REF!,0) ->  | L85: 4140.81 | M85: =SUM(H$5:H84) -> 2593166
A86: 82 | B86: 82 | C86: 91.12666667 | D86: 93.13333333 | E86: 105.6 | F86: 1 | G86: 105.6 | H86: 308576 | I86: 1.097897889 | J86: =ROUND(300*#REF!,0) ->  | L86: 4331.79 | M86: =SUM(H$5:H85) -> 2874227
A87: 83 | B87: 83 | C87: 95.68333333 | D87: 97.8 | E87: 110.9 | F87: 1 | G87: 110.9 | H87: 338446 | I87: 1.096799991 | J87: =ROUND(300*#REF!,0) ->  | L87: 4532 | M87: =SUM(H$5:H86) -> 3182803
A88: 84 | B88: 84 | C88: 100.4666667 | D88: 102.7 | E88: 116.45 | F88: 1 | G88: 116.45 | H88: 370836 | I88: 1.095703191 | J88: =ROUND(300*#REF!,0) ->  | L88: 4741.34 | M88: =SUM(H$5:H87) -> 3521249
A89: 85 | B89: 85 | C89: 105.49 | D89: 107.8333333 | E89: 122.25 | F89: 1 | G89: 122.25 | H89: 405920 | I89: 1.094607488 | J89: =ROUND(300*#REF!,0) ->  | L89: 4959.68 | M89: =SUM(H$5:H88) -> 3892085
A90: 86 | B90: 86 | C90: 110.7633333 | D90: 113.2333333 | E90: 128.35 | F90: 1 | G90: 128.35 | H90: 443879 | I90: 1.09351288 | J90: =ROUND(300*#REF!,0) ->  | L90: 5186.94 | M90: =SUM(H$5:H89) -> 4298005
A91: 87 | B91: 87 | C91: 116.3 | D91: 118.9 | E91: 134.75 | F91: 1 | G91: 134.75 | H91: 484902 | I91: 1.092419367 | J91: =ROUND(300*#REF!,0) ->  | L91: 5425.1 | M91: =SUM(H$5:H90) -> 4741884
A92: 88 | B92: 88 | C92: 122.1166667 | D92: 124.8333333 | E92: 141.5 | F92: 1 | G92: 141.5 | H92: 529187 | I92: 1.091326948 | J92: =ROUND(300*#REF!,0) ->  | L92: 5674.05 | M92: =SUM(H$5:H91) -> 5226786
A93: 89 | B93: 89 | C93: 128.2233333 | D93: 131.0666667 | E93: 148.6 | F93: 1 | G93: 148.6 | H93: 576939 | I93: 1.090235621 | J93: =ROUND(300*#REF!,0) ->  | L93: 5935.74 | M93: =SUM(H$5:H92) -> 5755973
A94: 90 | B94: 90 | C94: 134.6333333 | D94: 137.6333333 | E94: 156.05 | F94: 1 | G94: 156.05 | H94: 628370 | I94: 1.089145385 | J94: =ROUND(300*#REF!,0) ->  | L94: 6210.04 | M94: =SUM(H$5:H93) -> 6332912
A95: 91 | B95: 91 | C95: 141.3666667 | D95: 144.5 | E95: 163.85 | F95: 1 | G95: 163.85 | H95: 683702 | I95: 1.08805624 | J95: =ROUND(300*#REF!,0) ->  | K95: 4,2 | L95: 6496.78 | M95: =SUM(H$5:H94) -> 6961282
A96: 92 | B96: 92 | C96: 148.4366667 | D96: 151.7333333 | E96: 172.05 | F96: 1 | G96: 172.05 | H96: 743162 | I96: 1.086968184 | J96: =ROUND(300*#REF!,0) ->  | L96: 6795.81 | M96: =SUM(H$5:H95) -> 7644984
A97: 93 | B97: 93 | C97: 155.86 | D97: 159.3333333 | E97: 180.65 | F97: 1 | G97: 180.65 | H97: 806986 | I97: 1.085881216 | J97: =ROUND(300*#REF!,0) ->  | L97: 7109.07 | M97: =SUM(H$5:H96) -> 8388146
A98: 94 | B98: 94 | C98: 163.6533333 | D98: 167.3 | E98: 189.7 | F98: 1 | G98: 189.7 | H98: 875415 | I98: 1.084795334 | J98: =ROUND(300*#REF!,0) ->  | L98: 7436.38 | M98: =SUM(H$5:H97) -> 9195132
A99: 95 | B99: 95 | C99: 171.8366667 | D99: 175.6666667 | E99: 199.2 | F99: 1 | G99: 199.2 | H99: 948696 | I99: 1.083710539 | J99: =ROUND(300*#REF!,0) ->  | L99: 7779.62 | M99: =SUM(H$5:H98) -> 10070547
A100: 96 | B100: 96 | C100: 180.43 | D100: 184.4666667 | E100: 209.15 | F100: 1 | G100: 209.15 | H100: 1027084 | I100: 1.082626829 | J100: =ROUND(300*#REF!,0) ->  | L100: 8138.6 | M100: =SUM(H$5:H99) -> 11019243
A101: 97 | B101: 97 | C101: 189.45 | D101: 193.7 | E101: 219.6 | F101: 1 | G101: 219.6 | H101: 1110837 | I101: 1.081544202 | J101: =ROUND(300*#REF!,0) ->  | L101: 8513.14 | M101: =SUM(H$5:H100) -> 12046327
A102: 98 | B102: 98 | C102: 198.9233333 | D102: 203.4 | E102: 230.6 | F102: 1 | G102: 230.6 | H102: 1200218 | I102: 1.080462658 | J102: =ROUND(300*#REF!,0) ->  | L102: 8905.08 | M102: =SUM(H$5:H101) -> 13157164
A103: 99 | B103: 99 | C103: 208.87 | D103: 213.5666667 | E103: 242.15 | F103: 1 | G103: 242.15 | H103: 1295494 | I103: 1.079382195 | J103: =ROUND(300*#REF!,0) ->  | L103: 9316.24 | M103: =SUM(H$5:H102) -> 14357382
A104: 100 | B104: 100 | C104: 219.3133333 | D104: 224.2333333 | E104: 254.25 | F104: 1 | G104: 254.25 | H104: 1396935 | I104: 1.078302813 | J104: =ROUND(300*#REF!,0) ->  | L104: 9746.39 | M104: =SUM(H$5:H103) -> 15652876
A105: 101 | B105: 101 | C105: 230.28 | D105: 235.4333333 | E105: 266.95 | F105: 1 | G105: 266.95 | H105: 1504813 | I105: 1.07722451 | J105: =ROUND(300*#REF!,0) ->  | L105: 10195.3
A106: 102 | B106: 102 | C106: 241.7933333 | D106: 247.2 | E106: 280.3 | F106: 1 | G106: 280.3 | H106: 1619400 | I106: 1.076147285 | J106: =ROUND(300*#REF!,0) ->  | L106: 10664.75
A107: 103 | B107: 103 | C107: 253.8833333 | D107: 259.5666667 | E107: 294.3 | F107: 1 | G107: 294.3 | H107: 1740970 | I107: 1.075071138 | J107: =ROUND(300*#REF!,0) ->  | L107: 11156.5
A108: 104 | B108: 104 | C108: 266.5766667 | D108: 272.5333333 | E108: 309 | F108: 1 | G108: 309 | H108: 1869795 | I108: 1.073996067 | J108: =ROUND(300*#REF!,0) ->  | L108: 11670.27
A109: 105 | B109: 105 | C109: 279.9066667 | D109: 286.1666667 | E109: 324.45 | F109: 1 | G109: 324.45 | H109: 2006144 | I109: 1.072922071 | J109: =ROUND(300*#REF!,0) ->  | L109: 12207.78
A110: 106 | B110: 106 | C110: 293.9033333 | D110: 300.4666667 | E110: 340.65 | F110: 1 | G110: 340.65 | H110: 2150284 | I110: 1.071849149 | J110: =ROUND(300*#REF!,0) ->  | L110: 12770.73
A111: 107 | B111: 107 | C111: 308.6 | D111: 315.5 | E111: 357.7 | F111: 1 | G111: 357.7 | H111: 2302475 | I111: 1.0707773 | J111: =ROUND(300*#REF!,0) ->  | L111: 13358.82
A112: 108 | B112: 108 | C112: 324.03 | D112: 331.2666667 | E112: 375.6 | F112: 1 | G112: 375.6 | H112: 2462973 | I112: 1.069706522 | J112: =ROUND(300*#REF!,0) ->  | L112: 13975.66
A113: 109 | B113: 109 | C113: 340.23 | D113: 347.8333333 | E113: 394.4 | F113: 1 | G113: 394.4 | H113: 2632024 | I113: 1.068636816 | J113: =ROUND(300*#REF!,0) ->  | L113: 14620.92
A114: 110 | B114: 110 | C114: 357.24 | D114: 365.2333333 | E114: 414.1 | F114: 1 | G114: 414.1 | H114: 2809865 | I114: =I113*0.999 -> 1.067568179 | J114: =ROUND(300*#REF!,0) ->  | L114: 15296.19
A115: 111 | B115: 111 | C115: 375.1033333 | D115: 383.5 | E115: 434.8 | F115: 1 | G115: 434.8 | H115: 2996723 | I115: 1.066500611 | J115: =ROUND(300*#REF!,0) ->  | K115: 5,2 | L115: 16001.15
A116: 112 | B116: 112 | C116: 393.86 | D116: 402.6666667 | E116: 456.55 | F116: 1 | G116: 456.55 | H116: 3192811 | I116: 1.06543411 | J116: =ROUND(300*#REF!,0) ->  | L116: 16739.27
A117: 113 | B117: 113 | C117: 413.5533333 | D117: 422.8 | E117: 479.4 | F117: 1 | G117: 479.4 | H117: 3398328 | I117: 1.064368676 | J117: =ROUND(300*#REF!,0) ->  | L117: 17512.11
A118: 114 | B118: 114 | C118: 434.23 | D118: 443.9333333 | E118: 503.35 | F118: 1 | G118: 503.35 | H118: 3613457 | I118: 1.063304307 | J118: =ROUND(300*#REF!,0) ->  | L118: 18321.17
A119: 115 | B119: 115 | C119: 455.94 | D119: 466.1333333 | E119: 528.5 | F119: 1 | G119: 528.5 | H119: 3838362 | I119: 1.062241003 | J119: =ROUND(300*#REF!,0) ->  | L119: 19166.02
A120: 116 | B120: 116 | C120: 478.7366667 | D120: 489.4333333 | E120: 554.95 | F120: 1 | G120: 554.95 | H120: 4073188 | I120: 1.061178762 | J120: =ROUND(300*#REF!,0) ->  | L120: 20050.05
A121: 117 | B121: 117 | C121: 502.6733333 | D121: 513.9 | E121: 582.7 | F121: 1 | G121: 582.7 | H121: 4318058 | I121: 1.060117583 | J121: =ROUND(300*#REF!,0) ->  | L121: 20976.58
A122: 118 | B122: 118 | C122: 527.8066667 | D122: 539.6 | E122: 611.85 | F122: 1 | G122: 611.85 | H122: 4573072 | I122: 1.059057466 | J122: =ROUND(300*#REF!,0) ->  | L122: 21945.12
A123: 119 | B123: 119 | C123: 554.1966667 | D123: 566.5666667 | E123: 642.45 | F123: 1 | G123: 642.45 | H123: 4838303 | I123: 1.057998408 | J123: =ROUND(300*#REF!,0) ->  | L123: 22958.94
A124: 120 | B124: 120 | C124: 581.9066667 | D124: 594.9 | E124: 674.55 | F124: 1 | G124: 674.55 | H124: 5113798 | I124: 1.05694041 | J124: =ROUND(300*#REF!,0) ->  | L124: 24019.39
A125: 121 | B125: 121 | C125: 611.0033333 | D125: 624.6333333 | E125: 708.3 | F125: 1 | G125: 708.3 | H125: 5399575 | I125: 1.055883469 | J125: =ROUND(300*#REF!,0) ->  | L125: 25127.79
A126: 122 | B126: 122 | C126: 641.5533333 | D126: 655.8666667 | E126: 743.7 | F126: 1 | G126: 743.7 | H126: 5695621 | I126: 1.054827586 | J126: =ROUND(300*#REF!,0) ->  | L126: 26289.15
A127: 123 | B127: 123 | C127: 673.63 | D127: 688.6666667 | E127: 780.9 | F127: 1 | G127: 780.9 | H127: 6001890 | I127: 1.053772758 | J127: =ROUND(300*#REF!,0) ->  | L127: 27502.87
A128: 124 | B128: 124 | C128: 707.31 | D128: 723.1 | E128: 819.95 | F128: 1 | G128: 819.95 | H128: 6318304 | I128: 1.052718986 | J128: =ROUND(300*#REF!,0) ->  | L128: 28773.87
A129: 125 | B129: 125 | C129: 742.6766667 | D129: 759.2666667 | E129: 860.95 | F129: 1 | G129: 860.95 | H129: 6644747 | I129: 1.051666267 | J129: =ROUND(300*#REF!,0) ->  | L129: 30103.33
A130: 126 | B130: 126 | C130: 779.81 | D130: 797.2333333 | E130: 904 | F130: 1 | G130: 904 | H130: 6981068 | I130: 1.0506146 | J130: =ROUND(300*#REF!,0) ->  | L130: 31494.24
A131: 127 | B131: 127 | C131: 818.8 | D131: 837.1 | E131: 949.2 | F131: 1 | G131: 949.2 | H131: 7327078 | I131: 1.049563986 | J131: =ROUND(300*#REF!,0) ->  | L131: 32949.53
A132: 128 | B132: 128 | C132: 859.74 | D132: 878.9666667 | E132: 996.65 | F132: 1 | G132: 996.65 | H132: 7682547 | I132: 1.048514422 | J132: =ROUND(300*#REF!,0) ->  | L132: 34472.11
A133: 129 | B133: 129 | C133: 902.7266667 | D133: 922.9 | E133: 1046.5 | F133: 1 | G133: =E133 -> 1046.5 | H133: 8047206 | I133: 1.047465907 | J133: =ROUND(300*#REF!,0) ->  | L133: 36064.82
A134: 130 | B134: 130 | C134: 947.8633333 | D134: 969.0333333 | E134: 1098.85 | F134: 1 | G134: =E134 -> 1098.85 | H134: 8420745 | I134: 1.046418442 | J134: =ROUND(300*#REF!,0) ->  | L134: 37732.27
A135: 131 | B135: 131 | C135: 995.2566667 | D135: 1017.5 | E135: 1153.8 | F135: 1 | G135: =E135 -> 1153.8 | H135: =ROUND(H134*$I$5*I135,0) -> 8802811 | I135: 1.045372023 | J135: =ROUND(300*#REF!,0) ->  | K135: 1,3 | L135: 39477.2
A136: 132 | B136: 132 | C136: 1045.02 | D136: 1068.366667 | E136: 1211.5 | F136: 1 | G136: 1211.5 | H136: 9193010 | I136: 1.044326651 | J136: =ROUND(300*#REF!,0) ->  | L136: 41302.31
A137: 133 | B137: 133 | C137: 1097.27 | D137: 1121.8 | E137: 1272.1 | F137: 1 | G137: 1272.1 | H137: 9590905 | I137: 1.043282324 | J137: =ROUND(300*#REF!,0) ->  | L137: 43212.03
A138: 134 | B138: 134 | C138: 1152.133333 | D138: 1177.9 | E138: 1335.7 | F138: 1 | G138: 1335.7 | H138: 9996016 | I138: 1.042239042 | J138: =ROUND(300*#REF!,0) ->  | L138: 45210.73
A139: 135 | B139: 135 | C139: 1209.74 | D139: 1236.8 | E139: 1402.5 | F139: 1 | G139: 1402.5 | H139: 10407820 | I139: 1.041196803 | J139: =ROUND(300*#REF!,0) ->  | L139: 47300.94
A140: 136 | B140: 136 | C140: 1270.226667 | D140: 1298.633333 | E140: 1472.65 | F140: 1 | G140: 1472.65 | H140: 10825752 | I140: 1.040155606 | J140: =ROUND(300*#REF!,0) ->  | L140: 49488.67
A141: 137 | B141: 137 | C141: 1333.736667 | D141: 1363.566667 | E141: 1546.3 | F141: 1 | G141: 1546.3 | H141: 11249206 | I141: 1.039115451 | J141: =ROUND(300*#REF!,0) ->  | L141: 51778.11
A142: 138 | B142: 138 | C142: 1400.423333 | D142: 1431.733333 | E142: 1623.6 | F142: 1 | G142: 1623.6 | H142: 11677535 | I142: 1.038076335 | J142: =ROUND(300*#REF!,0) ->  | L142: 54173.33
A143: 139 | B143: 139 | C143: 1470.443333 | D143: 1503.333333 | E143: 1704.8 | F143: 1 | G143: 1704.8 | H143: 12110051 | I143: 1.037038259 | J143: =ROUND(300*#REF!,0) ->  | L143: 56678.4
A144: 140 | B144: 140 | C144: 1543.966667 | D144: 1578.5 | E144: 1790.05 | F144: 1 | G144: 1790.05 | H144: 12546028 | I144: 1.036001221 | J144: =ROUND(300*#REF!,0) ->  | L144: 59300.75
A145: 141 | B145: 141 | C145: 1621.166667 | D145: 1657.433333 | E145: 1879.55 | F145: 1 | G145: 1879.55 | H145: 12984703 | I145: 1.034965219 | J145: =ROUND(300*#REF!,0) ->  | L145: 62044.27
A146: 142 | B146: 142 | C146: 1702.226667 | D146: 1740.3 | E146: 1973.55 | F146: 1 | G146: 1973.55 | H146: 13425277 | I146: 1.033930254 | J146: =ROUND(300*#REF!,0) ->  | L146: 64914.48
A147: 143 | B147: 143 | C147: 1787.336667 | D147: 1827.3 | E147: 2072.25 | F147: 1 | G147: 2072.25 | H147: 13866919 | I147: 1.032896324 | J147: =ROUND(300*#REF!,0) ->  | L147: 67918.57
A148: 144 | B148: 144 | C148: 1876.703333 | D148: 1918.666667 | E148: 2175.85 | F148: 1 | G148: 2175.85 | H148: 14308767 | I148: 1.031863428 | J148: =ROUND(300*#REF!,0) ->  | L148: 71061.88
A149: 145 | B149: 145 | C149: 1970.54 | D149: 2014.6 | E149: 2284.65 | F149: 1 | G149: 2284.65 | H149: 14749929 | I149: 1.030831564 | J149: =ROUND(300*#REF!,0) ->  | L149: 74349.67
A150: 146 | B150: 146 | C150: 2069.066667 | D150: 2115.333333 | E150: 2398.9 | F150: 1 | G150: 2398.9 | H150: 15189488 | I150: 1.029800733 | J150: =ROUND(300*#REF!,0) ->  | L150: 77790.54
A151: 147 | B151: 147 | C151: 2172.52 | D151: 2221.1 | E151: 2518.85 | F151: 1 | G151: 2518.85 | H151: 15626504 | I151: 1.028770932 | J151: =ROUND(300*#REF!,0) ->  | L151: 81391.25
A152: 148 | B152: 148 | C152: 2281.146667 | D152: 2332.166667 | E152: 2644.8 | F152: 1 | G152: 2644.8 | H152: 16060017 | I152: 1.027742161 | J152: =ROUND(300*#REF!,0) ->  | L152: 85158.45
A153: 149 | B153: 149 | C153: 2395.203333 | D153: 2448.766667 | E153: 2777.05 | F153: 1 | G153: 2777.05 | H153: 16489051 | I153: 1.026714419 | J153: =ROUND(300*#REF!,0) ->  | L153: 89100.37
A154: 150 | B154: 150 | C154: 2514.963333 | D154: 2571.2 | E154: 2915.9 | F154: 1 | G154: 2915.9 | H154: 16912617 | I154: 1.025687704 | J154: =ROUND(300*#REF!,0) ->  | L154: 93225.14
A155: 151 | B155: 151 | C155: 2640.71 | D155: 2699.766667 | E155: 3061.7 | F155: 1 | G155: 3061.7 | H155: 17329716 | I155: 1.024662017 | J155: =ROUND(300*#REF!,0) ->  | K155: 2,3 | L155: 97540.73
A156: 152 | B156: 152 | C156: 2772.746667 | D156: 2834.766667 | E156: 3214.8 | F156: 1 | G156: 3214.8 | H156: 17739345 | I156: 1.023637355 | J156: =ROUND(300*#REF!,0) ->  | L156: 102056.67
A157: 153 | B157: 153 | C157: 2911.383333 | D157: 2976.5 | E157: 3375.55 | F157: 1 | G157: 3375.55 | H157: 18140498 | I157: 1.022613717 | J157: =ROUND(300*#REF!,0) ->  | L157: 106782.34
A158: 154 | B158: 154 | C158: 3056.953333 | D158: 3125.333333 | E158: 3544.35 | F158: 1 | G158: 3544.35 | H158: 18532171 | I158: 1.021591104 | J158: =ROUND(300*#REF!,0) ->  | L158: 111727
A159: 155 | B159: 155 | C159: 3209.8 | D159: 3281.6 | E159: 3721.55 | F159: 1 | G159: 3721.55 | H159: 18913369 | I159: 1.020569512 | J159: =ROUND(300*#REF!,0) ->  | L159: 116901.37
A160: 156 | B160: 156 | C160: 3370.29 | D160: 3445.666667 | E160: 3907.65 | F160: 1 | G160: 3907.65 | H160: 19283105 | I160: 1.019548943 | J160: =ROUND(300*#REF!,0) ->  | L160: 122314.4
A161: 157 | B161: 157 | C161: 3538.803333 | D161: 3617.966667 | E161: 4103.05 | F161: 1 | G161: 4103.05 | H161: 19640409 | I161: 1.018529394 | J161: =ROUND(300*#REF!,0) ->  | L161: 127979.8
A162: 158 | B162: 158 | C162: 3715.743333 | D162: 3798.866667 | E162: 4308.2 | F162: 1 | G162: 4308.2 | H162: 19984330 | I162: 1.017510865 | J162: =ROUND(300*#REF!,0) ->  | L162: 133907.82
A163: 159 | B163: 159 | C163: 3901.53 | D163: 3988.8 | E163: 4523.6 | F163: 1 | G163: 4523.6 | H163: 20313939 | I163: 1.016493354 | J163: =ROUND(300*#REF!,0) ->  | L163: 140110.16
A164: 160 | B164: 160 | C164: 4096.606667 | D164: 4188.233333 | E164: 4749.8 | F164: 1 | G164: 4749.8 | H164: 20628335 | I164: 1.01547686 | J164: =ROUND(300*#REF!,0) ->  | L164: 146599.97
A165: 161 | B165: 161 | C165: 4301.436667 | D165: 4397.633333 | E165: 4987.3 | F165: 1 | G165: 4987.3 | H165: 20926649 | I165: 1.014461383 | J165: =ROUND(300*#REF!,0) ->  | L165: 153391.81
A166: 162 | B166: 162 | C166: 4516.51 | D166: 4617.5 | E166: 5236.65 | F166: 1 | G166: 5236.65 | H166: 21208048 | I166: 1.013446922 | J166: =ROUND(300*#REF!,0) ->  | L166: 160498.42
A167: 163 | B167: 163 | C167: 4742.336667 | D167: 4848.366667 | E167: 5498.5 | F167: 1 | G167: =E167 -> 5498.5 | H167: 21471738 | I167: 1.012433475 | J167: =ROUND(300*#REF!,0) ->  | L167: 167933.95
A168: 164 | B168: 164 | C168: 4979.453333 | D168: 5090.8 | E168: 5773.45 | F168: 1 | G168: 5773.45 | H168: 21716968 | I168: 1.011421042 | J168: =ROUND(300*#REF!,0) ->  | L168: 175715.51
A169: 165 | B169: 165 | C169: 5228.426667 | D169: 5345.333333 | E169: 6062.1 | F169: 1 | G169: 6062.1 | H169: 21943033 | I169: 1.010409621 | J169: =ROUND(300*#REF!,0) ->  | L169: 183858.36
A170: 166 | B170: 166 | C170: 5489.846667 | D170: 5612.6 | E170: 6365.2 | F170: 1 | G170: 6365.2 | H170: 22160366 | I170: =I169*0.9995 -> 1.009904416 | J170: =ROUND(300*#REF!,0) ->  | L170: 192377.56
A171: 167 | B171: 167 | C171: 5764.34 | D171: 5893.233333 | E171: 6683.45 | F171: 1 | G171: 6683.45 | H171: 22368662 | I171: =I170*0.9995 -> 1.009399464 | J171: =ROUND(300*#REF!,0) ->  | L171: 201292.65
A172: 168 | B172: 168 | C172: 6052.556667 | D172: 6187.9 | E172: 7017.6 | F172: 1 | G172: 7017.6 | H172: 22567626 | I172: =I171*0.9995 -> 1.008894764 | J172: =ROUND(300*#REF!,0) ->  | L172: 210621.3
A173: 169 | B173: 169 | C173: 6355.183333 | D173: 6497.3 | E173: 7368.5 | F173: 1 | G173: 7368.5 | H173: 22756976 | I173: =I172*0.9995 -> 1.008390317 | J173: =ROUND(300*#REF!,0) ->  | L173: 220382.5
A174: 170 | B174: 170 | C174: 6672.943333 | D174: 6822.166667 | E174: 7736.95 | F174: 1 | G174: 7736.95 | H174: 22936440 | I174: =I173*0.9995 -> 1.007886121 | J174: =ROUND(300*#REF!,0) ->  | L174: 230598.07
A175: 171 | B175: 171 | C175: 7006.59 | D175: 7163.266667 | E175: 8123.8 | F175: 1 | G175: 8123.8 | H175: 23105761 | I175: =I174*0.9995 -> 1.007382178 | J175: =ROUND(300*#REF!,0) ->  | K175: 3,3 | L175: 241287.93
A176: 172 | B176: 172 | C176: 7356.92 | D176: 7521.433333 | E176: 8530 | F176: 1 | G176: 8530 | H176: 23264694 | I176: =I175*0.9995 -> 1.006878487 | J176: =ROUND(300*#REF!,0) ->  | L176: 252473.28
A177: 173 | B177: 173 | C177: 7724.766667 | D177: 7897.5 | E177: 8956.5 | F177: 1 | G177: 8956.5 | H177: 23413008 | I177: =I176*0.9995 -> 1.006375048 | J177: =ROUND(300*#REF!,0) ->  | L177: 264178.06
A178: 174 | B178: 174 | C178: 8111.006667 | D178: 8292.366667 | E178: 9404.35 | F178: 1 | G178: 9404.35 | H178: 23550486 | I178: =I177*0.9995 -> 1.00587186 | J178: =ROUND(300*#REF!,0) ->  | L178: 276425.87
A179: 175 | B179: 175 | C179: 8516.556667 | D179: 8707 | E179: 9874.55 | F179: 1 | G179: 9874.55 | H179: 23676927 | I179: =I178*0.9995 -> 1.005368925 | J179: =ROUND(300*#REF!,0) ->  | L179: 289243.03
A180: 176 | B180: 176 | C180: 8942.383333 | D180: 9142.366667 | E180: 10368.3 | F180: 1 | G180: 10368.3 | H180: 23827851 | I180: =I179*1.001 -> 1.006374293 | J180: =ROUND(300*#REF!,0) ->  | L180: 302653.92
A181: 177 | B181: 177 | C181: 9389.503333 | D181: 9599.5 | E181: 10886.7 | F181: 1 | G181: 10886.7 | H181: 24003716 | I181: =I180*1.001 -> 1.007380668 | J181: =ROUND(300*#REF!,0) ->  | L181: 316688.66
A182: 178 | B182: 178 | C182: 9858.98 | D182: 10079.46667 | E182: 11431.05 | F182: 1 | G182: 11431.05 | H182: 24205060 | I182: 1.008388048 | J182: =ROUND(300*#REF!,0) ->  | L182: 331373.87
A183: 179 | B183: 179 | C183: 10351.93 | D183: 10583.43333 | E183: 12002.6 | F183: 1 | G183: 12002.6 | H183: 24432501 | I183: 1.009396436 | J183: =ROUND(300*#REF!,0) ->  | L183: 346741.85
A184: 180 | B184: 180 | C184: 10869.52667 | D184: 11112.6 | E184: 12602.75 | F184: 1 | G184: 12602.75 | H184: 24686742 | I184: 1.010405833 | J184: =ROUND(300*#REF!,0) ->  | L184: 362822.88
A185: 181 | B185: 181 | C185: 11413.00333 | D185: 11668.23333 | E185: 13232.9 | F185: 1 | G185: 13232.9 | H185: 24968572 | I185: 1.011416239 | J185: =ROUND(300*#REF!,0) ->  | L185: 379651.31
A186: 182 | B186: 182 | C186: 11983.65333 | D186: 12251.63333 | E186: 13894.55 | F186: 1 | G186: 13894.55 | H186: 25278873 | I186: 1.012427655 | J186: =ROUND(300*#REF!,0) ->  | L186: 397260.97
A187: 183 | B187: 183 | C187: 12582.83667 | D187: 12864.2 | E187: 14589.3 | F187: 1 | G187: 14589.3 | H187: 25618623 | I187: 1.013440083 | J187: =ROUND(300*#REF!,0) ->  | L187: 415688.19
A188: 184 | B188: 184 | C188: 13211.98 | D188: 13507.4 | E188: 15318.75 | F188: 1 | G188: 15318.75 | H188: 25988902 | I188: 1.014453523 | J188: =ROUND(300*#REF!,0) ->  | L188: 434971.71
A189: 185 | B189: 185 | C189: 13872.58 | D189: 14182.76667 | E189: 16084.7 | F189: 1 | G189: 16084.7 | H189: 26390898 | I189: 1.015467976 | J189: =ROUND(300*#REF!,0) ->  | L189: 455149.69
A190: 186 | B190: 186 | C190: 14566.21 | D190: 14891.9 | E190: 16888.95 | F190: 1 | G190: 16888.95 | H190: 26825911 | I190: 1.016483444 | J190: =ROUND(300*#REF!,0) ->  | L190: 476265.66
A191: 187 | B191: 187 | C191: 15294.52 | D191: 15636.5 | E191: 17733.4 | F191: 1 | G191: 17733.4 | H191: 27295363 | I191: 1.017499928 | J191: =ROUND(300*#REF!,0) ->  | L191: 498362.46
A192: 188 | B192: 188 | C192: 16059.24667 | D192: 16418.33333 | E192: 18620.05 | F192: 1 | G192: 18620.05 | H192: 27800803 | I192: 1.018517428 | J192: =ROUND(300*#REF!,0) ->  | L192: 521485.26
A193: 189 | B193: 189 | C193: 16862.21 | D193: 17239.26667 | E193: 19551.05 | F193: 1 | G193: 19551.05 | H193: 28343918 | I193: 1.019535945 | J193: =ROUND(300*#REF!,0) ->  | L193: 545681.47
A194: 190 | B194: 190 | C194: 17705.32 | D194: 18101.23333 | E194: 20528.6 | F194: 1 | G194: 20528.6 | H194: 28926541 | I194: 1.020555481 | J194: =ROUND(300*#REF!,0) ->  | L194: 571002.15
A195: 191 | B195: 191 | C195: 18590.58667 | D195: 19006.3 | E195: 21555.05 | F195: 1 | G195: 21555.05 | H195: 29550661 | I195: 1.021576036 | J195: =ROUND(300*#REF!,0) ->  | K195: 4,3 | L195: 597499.09
A196: 192 | B196: 192 | C196: 19520.11667 | D196: 19956.6 | E196: 22632.8 | F196: 1 | G196: 22632.8 | H196: 30218435 | I196: 1.022597612 | J196: =ROUND(300*#REF!,0) ->  | L196: 625227.62
A197: 193 | B197: 193 | C197: 20496.12333 | D197: 20954.43333 | E197: 23764.45 | F197: 1 | G197: 23764.45 | H197: 30932201 | I197: 1.02362021 | J197: =ROUND(300*#REF!,0) ->  | L197: 654243.69
A198: 194 | B198: 194 | C198: 21520.93 | D198: 22002.16667 | E198: 24952.65 | F198: 1 | G198: 24952.65 | H198: 31694489 | I198: 1.02464383 | J198: =ROUND(300*#REF!,0) ->  | L198: 684608.2
A199: 195 | B199: 195 | C199: 22596.97667 | D199: 23102.26667 | E199: 26200.3 | F199: 1 | G199: =E199 -> 26200.3 | H199: =ROUND(H198*$I$5*I199,0) -> 32508038 | I199: 1.025668474 | J199: =ROUND(300*#REF!,0) ->  | L199: 716382.53
A200: 196 | B200: 196 | C200: 23726.82667 | D200: 24257.36667 | E200: 27510.3 | F200: 1 | G200: 27510.3 | H200: 33375812 | I200: 1.026694143 | J200: =ROUND(300*#REF!,0) ->  | L200: 749634.34
... 107 more rows
